[Event "Panevezys Elite Open 2020"]
[Site "Panevezys"]
[Date "2020.06.26"]
[Round "1.4"]
[White "Chukavin, Kirill"]
[Black "Starostits, Ilmars"]
[Result "0-1"]
[ECO "B32"]
[WhiteElo "2348"]
[BlackElo "2490"]
[Annotator "RC"]
[PlyCount "66"]
[EventDate "2020.06.26"]
[EventType "swiss"]
[EventCountry "LTU"]
[SourceTitle "playchess.com"]
[Source "ChessBase"]
[SourceQuality "1"]
[TimeControl "40/5400+30:1800+30"]

1. e4 {[%emt 0:00:00]} c5 {[%emt 0:00:00]} 2. Nf3 {[%emt 0:01:09]} Nc6 {[%emt 0:00:00]} 3. d4 {[%emt 0:00:16]} cxd4 {[%emt 0:00:00]} 4. Nxd4 {[%emt 0:00:08]} Qb6 {[%emt 0:00:00]} 5. Nb3 {[%emt 0:01:19]} Nf6 {[%emt 0:00:00]} 6. Nc3 {[%emt 0:00:47]} e6 {[%emt 0:00:06]} 7. Be3 {[%emt 0:00:51]} Qc7 {[%emt 0:00:11]} 8. Bd3 {[%emt 0:00:46]} Bb4 {[%emt 0:00:47]} 9. f4 {[%emt 0:03:49]} e5 {[%emt 0:04:10]} 10. O-O {[%emt 0:10:50]} Bxc3 {[%emt 0:00:10]} 11. bxc3 {[%emt 0:00:06]} d6 {[%emt 0:02:24]} 12. Kh1 {[%emt 0:12:02]} b6 {[%emt 0:05:33]} 13. fxe5 {[%emt 0:04:53]} dxe5 {[%emt 0:00:59]} 14. Bg5 {[%emt 0:18:19]} Bg4 {[%emt 0:08:48]} 15. Qe1 {[%emt 0:16:12]} Nd7 {[%emt 0:00:06]} 16. Bc4 {[%emt 0:02:32]} Bh5 {[%emt 0:03:45]} 17. Qh4 {[%emt 0:03:11]} Bg6 {[%emt 0:00:32]} 18. Rad1 {[%emt 0:01:41]} O-O {[%emt 0:02:05]} 19. Qg4 {[%emt 0:03:27]} Na5 {[%emt 0:06:05]} 20. Nxa5 {[%emt 0:04:04]} bxa5 {[%emt 0:00:33]} 21. Bd5 {[%emt 0:00:05]} Rae8 {[%emt 0:05:24]} 22. Bc1 {[%emt 0:06:29]} Kh8 {[%emt 0:15:28]} 23. Ba3 {[%emt 0:00:26]} Nc5 {[%emt 0:01:19]} 24. h4 {[%emt 0:01:01]} h5 {[%emt 0:03:06]} 25. Qg5 {[%emt 0:01:20]} Rc8 {[%emt 0:01:03]} 26. g4 {[%emt 0:05:45]} Nxe4 {[%emt 0:05:25]} 27. Bxe4 {[%emt 0:01:12]} Bxe4+ {[%emt 0:00:04]} 28. Kh2 {[%emt 0:00:02]} Rfd8 {[%emt 0:03:21]} 29. Rxd8+ {[%emt 0:01:15]} Rxd8 {[%emt 0:00:42]} 30. Rxf7 {[%emt 0:00:32]} Qxf7 {[%emt 0:00:20]} 31. Qxd8+ {[%emt 0:00:02]} Kh7 {[%emt 0:00:08]} 32. Qd2 {[%emt 0:00:27]} Qf3 {[%emt 0:00:17]} 33. Bc5 {[%emt 0:00:33]} hxg4 {[%emt 0:00:21]} 0-1

[Event "Panevezys Elite Open 2020"]
[Site "Panevezys"]
[Date "2020.06.26"]
[Round "1.11"]
[White "Golsta, Madara"]
[Black "Butvilas, Aistis"]
[Result "0-1"]
[ECO "B40"]
[WhiteElo "1903"]
[BlackElo "2103"]
[Annotator "RC"]
[PlyCount "80"]
[EventDate "2020.06.26"]
[EventType "swiss"]
[EventCountry "LTU"]
[SourceTitle "playchess.com"]
[Source "ChessBase"]
[SourceQuality "1"]
[TimeControl "40/5400+30:1800+30"]

1. e4 {[%emt 0:00:00]} c5 {[%emt 0:00:00]} 2. Nf3 {[%emt 0:00:00]} e6 {[%emt 0:00:00]} 3. d4 {[%emt 0:00:18]} cxd4 {[%emt 0:00:03]} 4. Nxd4 {[%emt 0:00:06]} Nf6 {[%emt 0:00:10]} 5. Nc3 {[%emt 0:01:38]} Nc6 {[%emt 0:00:08]} 6. Nxc6 {[%emt 0:00:31]} bxc6 {[%emt 0:00:25]} 7. e5 {[%emt 0:00:38]} Nd5 {[%emt 0:00:06]} 8. Ne4 {[%emt 0:00:25]} Qc7 {[%emt 0:00:17]} 9. f4 {[%emt 0:00:25]} Qb6 {[%emt 0:00:06]} 10. c4 {[%emt 0:02:28]} Bb4+ {[%emt 0:00:10]} 11. Ke2 {[%emt 0:00:28]} f5 {[%emt 0:00:34]} 12. exf6 {[%emt 0:01:42]} Nxf6 {[%emt 0:01:06]} 13. Nxf6+ {[%emt 0:02:05]} gxf6 {[%emt 0:00:15]} 14. Be3 {[%emt 0:00:24]} Bc5 {[%emt 0:01:17]} 15. Bxc5 {[%emt 0:04:32]} Qxc5 {[%emt 0:00:30]} 16. Rc1 {[%emt 0:05:42]} e5 {[%emt 0:03:43]} 17. Qd2 {[%emt 0:04:08]} Rb8 {[%emt 0:04:28]} 18. b3 {[%emt 0:01:39]} d6 {[%emt 0:00:55]} 19. Qe3 {[%emt 0:05:17]} Qa3 {[%emt 0:08:43]} 20. Rc2 {[%emt 0:02:16]} Bf5 {[%emt 0:00:31]} 21. Rd2 {[%emt 0:02:01]} O-O {[%emt 0:01:53]} 22. Kf2 {[%emt 0:06:35]} Rfe8 {[%emt 0:30:04]} 23. Be2 {[%emt 0:03:16]} Rbd8 {[%emt 0:08:34]} 24. Rhd1 {[%emt 0:07:46]} Bg6 {[%emt 0:10:28]} 25. Kg1 {[%emt 0:07:16]} Qa5 {[%emt 0:09:36]} 26. f5 {[%emt 0:11:54]} Bf7 {[%emt 0:02:33]} 27. Qh6 {[%emt 0:00:48]} Qc5+ {[%emt 0:03:56]} 28. Kh1 {[%emt 0:02:13]} e4 {[%emt 0:00:59]} 29. Rf1 {[%emt 0:07:02]} Qe5 {[%emt 0:01:46]} 30. Rf4 {[%emt 0:04:48]} Kh8 {[%emt 0:01:06]} 31. Rd1 {[%emt 0:04:14]} d5 {[%emt 0:01:16]} 32. h3 {[%emt 0:03:39]} Rg8 {[%emt 0:03:49]} 33. Rdf1 {[%emt 0:02:14]} Rg7 {[%emt 0:00:56]} 34. Rg4 {[%emt 0:07:23]} Rxg4 {[%emt 0:01:09]} 35. hxg4 {[%emt 0:00:13]} Rg8 {[%emt 0:02:14]} 36. cxd5 {[%emt 0:00:25]} cxd5 {[%emt 0:00:03]} 37. Rc1 {[%emt 0:00:57]} d4 {[%emt 0:00:55]} 38. Bc4 {[%emt 0:00:58]} Bxc4 {[%emt 0:00:35]} 39. bxc4 {[%emt 0:00:27]} e3 {[%emt 0:00:31]} 40. Rb1 {[%emt 0:00:33]} e2 {[%emt 0:01:41]} 0-1

[Event "Panevezys Elite Open 2020"]
[Site "Panevezys"]
[Date "2020.07.01"]
[Round "7.2"]
[White "Baum, Jonasz"]
[Black "Golubovskis, Maksims"]
[Result "0-1"]
[ECO "E12"]
[WhiteElo "2373"]
[BlackElo "2062"]
[Annotator "ChessBase"]
[PlyCount "96"]
[EventDate "2020.06.26"]
[EventType "swiss"]
[EventCountry "LTU"]
[SourceTitle "playchess.com"]
[Source "ChessBase"]
[SourceQuality "1"]
[TimeControl "40/5400+30:1800+30"]

1. d4 {[%emt 0:00:00]} Nf6 {[%emt 0:00:00]} 2. c4 {[%emt 0:00:00]} e6 {[%emt 0:00:00]} 3. Nf3 {[%emt 0:00:00]} b6 {[%emt 0:00:10]} 4. Bf4 {[%emt 0:00:16]} Bb4+ {[%emt 0:00:07]} 5. Nfd2 {[%emt 0:00:41]} Nh5 {[%emt 0:00:06]} 6. Bg3 {[%emt 0:05:45]} Bb7 {[%emt 0:00:02]} 7. a3 {[%emt 0:00:19]} Be7 {[%emt 0:00:17]} 8. Nc3 {[%emt 0:00:05]} d5 {[%emt 0:04:56]} 9. e4 {[%emt 0:09:07]} Nxg3 {[%emt 0:00:16]} 10. hxg3 {[%emt 0:00:02]} dxe4 {[%emt 0:00:09]} 11. Ndxe4 {[%emt 0:00:06]} f5 {[%emt 0:02:47]} 12. Nd2 {[%emt 0:15:42]} Qxd4 {[%emt 0:00:50]} 13. Nb5 {[%emt 0:16:52]} Qd7 {[%emt 0:02:59]} 14. Nf3 {[%emt 0:12:27]} Nc6 {[%emt 0:05:13]} 15. Qxd7+ {[%emt 0:00:49]} Kxd7 {[%emt 0:00:00]} 16. O-O-O+ {[%emt 0:00:33]} Bd6 {[%emt 0:06:14]} 17. Ng5 {[%emt 0:13:51]} Ke7 {[%emt 0:01:46]} 18. Rxh7 {[%emt 0:03:48]} Rxh7 {[%emt 0:00:51]} 19. Nxh7 {[%emt 0:00:08]} Bc5 {[%emt 0:11:53]} 20. Ng5 {[%emt 0:04:34]} Bxf2 {[%emt 0:00:44]} 21. Nxe6 {[%emt 0:00:16]} Kxe6 {[%emt 0:00:57]} 22. Nxc7+ {[%emt 0:00:03]} Ke7 {[%emt 0:00:57]} 23. Nxa8 {[%emt 0:00:07]} Bxa8 {[%emt 0:00:34]} 24. Kc2 {[%emt 0:12:21]} Ne5 {[%emt 0:00:32]} 25. Kc3 {[%emt 0:02:36]} Ng4 {[%emt 0:01:02]} 26. Bd3 {[%emt 0:00:25]} Ne3 {[%emt 0:00:37]} 27. Rh1 {[%emt 0:00:23]} Bxg3 {[%emt 0:00:22]} 28. Rh7 {[%emt 0:01:39]} Kf6 29. b4 {[%emt 0:00:52]} Bxg2 {[%emt 0:00:59]} 30. c5 {[%emt 0:00:32]} bxc5 {[%emt 0:00:01]} 31. bxc5 {[%emt 0:00:06]} f4 {[%emt 0:00:11]} 32. Rh8 {[%emt 0:01:03]} Bc6 {[%emt 0:04:54]} 33. Rc8 {[%emt 0:00:22]} Nd5+ {[%emt 0:00:15]} 34. Kd4 {[%emt 0:00:36]} Bf2+ {[%emt 0:00:37]} 35. Kc4 {[%emt 0:00:07]} Ne7 {[%emt 0:01:23]} 36. Rf8+ {[%emt 0:00:04]} Ke5 {[%emt 0:00:22]} 37. Kb4 {[%emt 0:01:08]} g5 {[%emt 0:02:57]} 38. Be2 {[%emt 0:00:19]} Nd5+ {[%emt 0:00:43]} 39. Kb3 {[%emt 0:00:36]} Bxc5 {[%emt 0:00:32]} 40. Rg8 {[%emt 0:00:19]} Be7 {[%emt 0:01:07]} 41. a4 {[%emt 0:30:27]} Bxa4+ {[%emt 0:30:09]} 42. Kc4 {[%emt 0:00:34]} Bb5+ {[%emt 0:00:19]} 43. Kxb5 {[%emt 0:00:19]} Nc3+ {[%emt 0:00:01]} 44. Kc6 {[%emt 0:00:34]} Nxe2 {[%emt 0:00:29]} 45. Kd7 {[%emt 0:00:13]} Kf6 {[%emt 0:01:05]} 46. Re8 {[%emt 0:00:12]} f3 {[%emt 0:00:27]} 47. Rh8 {[%emt 0:00:00]} f2 {[%emt 0:00:00]} 48. Rh6+ {[%emt 0:00:00]} Kg7 {[%emt 0:00:00]} 0-1

[Event "Panevezys Elite Open 2020"]
[Site "Panevezys"]
[Date "2020.07.01"]
[Round "7.3"]
[White "Juknis, Paulius"]
[Black "Jazdanovs, Aleksandrs"]
[Result "0-1"]
[ECO "C47"]
[WhiteElo "2127"]
[BlackElo "2222"]
[Annotator "ChessBase"]
[PlyCount "84"]
[EventDate "2020.06.26"]
[EventType "swiss"]
[EventCountry "LTU"]
[SourceTitle "playchess.com"]
[Source "ChessBase"]
[SourceQuality "1"]
[TimeControl "40/5400+30:1800+30"]

1. e4 {[%emt 0:00:00]} e5 {[%emt 0:00:00]} 2. Nf3 {[%emt 0:02:44]} Nc6 {[%emt 0:00:00]} 3. Nc3 {[%emt 0:00:20]} Nf6 {[%emt 0:00:00]} 4. d4 {[%emt 0:00:26]} exd4 {[%emt 0:00:04]} 5. Nxd4 {[%emt 0:00:07]} Bb4 {[%emt 0:00:36]} 6. Nxc6 {[%emt 0:00:40]} bxc6 {[%emt 0:00:07]} 7. Bd3 {[%emt 0:00:14]} d5 {[%emt 0:00:27]} 8. exd5 {[%emt 0:00:13]} cxd5 {[%emt 0:00:59]} 9. O-O {[%emt 0:00:15]} O-O {[%emt 0:00:07]} 10. h3 {[%emt 0:00:15]} h6 {[%emt 0:04:45]} 11. Qf3 {[%emt 0:04:33]} c6 {[%emt 0:01:31]} 12. Bf4 {[%emt 0:03:19]} Be6 {[%emt 0:02:32]} 13. Na4 {[%emt 0:06:12]} Bd6 {[%emt 0:02:33]} 14. Rac1 {[%emt 0:08:59]} d4 {[%emt 0:07:32]} 15. Bxd6 {[%emt 0:03:47]} Qxd6 {[%emt 0:00:10]} 16. c4 {[%emt 0:00:22]} c5 {[%emt 0:01:04]} 17. Qg3 {[%emt 0:14:48]} Qxg3 {[%emt 0:02:16]} 18. fxg3 {[%emt 0:00:01]} Rac8 {[%emt 0:02:13]} 19. b3 {[%emt 0:03:06]} Nd7 {[%emt 0:02:04]} 20. Rce1 {[%emt 0:01:58]} Rfe8 {[%emt 0:05:51]} 21. Nb2 {[%emt 0:06:04]} Kf8 {[%emt 0:03:01]} 22. Be4 {[%emt 0:04:32]} Nf6 {[%emt 0:01:15]} 23. Bc2 {[%emt 0:09:45]} Bd7 {[%emt 0:03:23]} 24. Nd1 {[%emt 0:03:28]} h5 {[%emt 0:02:21]} 25. Nf2 {[%emt 0:01:38]} g6 {[%emt 0:07:42]} 26. Ne4 {[%emt 0:09:45]} Nxe4 {[%emt 0:00:32]} 27. Bxe4 {[%emt 0:00:13]} Bc6 {[%emt 0:03:00]} 28. Bxc6 {[%emt 0:00:21]} Rxc6 {[%emt 0:00:04]} 29. Rxe8+ {[%emt 0:01:29]} Kxe8 {[%emt 0:03:14]} 30. Rd1 {[%emt 0:00:17]} Rf6 {[%emt 0:01:11]} 31. b4 {[%emt 0:00:32]} cxb4 {[%emt 0:00:27]} 32. Rxd4 {[%emt 0:00:05]} Rf5 {[%emt 0:01:51]} 33. g4 {[%emt 0:07:13]} hxg4 {[%emt 0:00:11]} 34. hxg4 {[%emt 0:00:03]} Re5 {[%emt 0:02:12]} 35. Kf2 {[%emt 0:00:32]} Ra5 {[%emt 0:00:08]} 36. Rd2 {[%emt 0:00:11]} Ra3 {[%emt 0:00:05]} 37. g5 {[%emt 0:06:03]} Rc3 {[%emt 0:00:42]} 38. Rd4 {[%emt 0:00:15]} Rc2+ {[%emt 0:00:44]} 39. Kf3 {[%emt 0:00:06]} Rxa2 {[%emt 0:00:03]} 40. c5 {[%emt 0:00:16]} a5 {[%emt 0:00:05]} 41. Ke4 {[%emt 0:30:56]} Rc2 {[%emt 0:30:16]} 42. Kd5 {[%emt 0:00:16]} b3 {[%emt 0:00:06]} 0-1

[Event "Panevezys Elite Open 2020"]
[Site "Panevezys"]
[Date "2020.07.01"]
[Round "7.5"]
[White "Malisauskas, Vidmantas"]
[Black "Stremavicius, Pijus"]
[Result "1/2-1/2"]
[ECO "D12"]
[WhiteElo "2423"]
[BlackElo "2163"]
[Annotator "ChessBase"]
[PlyCount "104"]
[EventDate "2020.06.26"]
[EventType "swiss"]
[EventCountry "LTU"]
[SourceTitle "playchess.com"]
[Source "ChessBase"]
[SourceQuality "1"]
[TimeControl "40/5400+30:1800+30"]

1. Nf3 {[%emt 0:03:39]} d5 {[%emt 0:00:00]} 2. d4 {[%emt 0:00:13]} Nf6 {[%emt 0:00:00]} 3. c4 {[%emt 0:00:07]} c6 {[%emt 0:00:00]} 4. e3 {[%emt 0:00:08]} Bf5 {[%emt 0:00:11]} 5. Nc3 {[%emt 0:00:08]} a6 {[%emt 0:00:04]} 6. Qb3 {[%emt 0:04:18]} Ra7 {[%emt 0:00:13]} 7. Bd2 {[%emt 0:02:46]} e6 {[%emt 0:00:44]} 8. Nh4 {[%emt 0:00:16]} Bg4 {[%emt 0:03:24]} 9. h3 {[%emt 0:00:25]} Bh5 {[%emt 0:00:06]} 10. g4 {[%emt 0:00:23]} Nfd7 {[%emt 0:00:20]} 11. Ng2 {[%emt 0:00:37]} Bg6 {[%emt 0:00:07]} 12. Nf4 {[%emt 0:00:12]} b5 {[%emt 0:05:04]} 13. cxd5 {[%emt 0:18:42]} cxd5 {[%emt 0:02:26]} 14. Nxg6 {[%emt 0:00:09]} hxg6 {[%emt 0:00:07]} 15. a4 {[%emt 0:00:09]} b4 {[%emt 0:01:02]} 16. Na2 {[%emt 0:00:44]} a5 {[%emt 0:01:55]} 17. Bb5 {[%emt 0:00:12]} Bd6 {[%emt 0:01:08]} 18. Rc1 {[%emt 0:00:51]} O-O {[%emt 0:01:35]} 19. Rc2 {[%emt 0:03:37]} Qh4 {[%emt 0:06:07]} 20. e4 {[%emt 0:08:25]} dxe4 {[%emt 0:02:11]} 21. Be3 {[%emt 0:00:12]} Rc7 {[%emt 0:01:24]} 22. Rxc7 {[%emt 0:00:27]} Bxc7 {[%emt 0:00:02]} 23. Qc2 {[%emt 0:00:19]} Qd8 {[%emt 0:01:12]} 24. Qxe4 {[%emt 0:00:43]} Nf6 {[%emt 0:00:10]} 25. Qb7 {[%emt 0:00:21]} Nd5 {[%emt 0:09:00]} 26. Ke2 {[%emt 0:01:59]} Bf4 {[%emt 0:02:46]} 27. Bc4 {[%emt 0:02:01]} Qg5 {[%emt 0:05:13]} 28. Bxd5 {[%emt 0:02:30]} exd5 {[%emt 0:00:25]} 29. Re1 {[%emt 0:01:36]} Bxe3 {[%emt 0:04:59]} 30. fxe3 {[%emt 0:05:29]} Qh4 {[%emt 0:00:53]} 31. Qxd5 {[%emt 0:01:55]} Qxh3 {[%emt 0:00:15]} 32. Qf3 {[%emt 0:00:10]} Qh2+ {[%emt 0:00:22]} 33. Qf2 {[%emt 0:00:12]} Qc7 {[%emt 0:00:52]} 34. Kd2 {[%emt 0:06:53]} Qc4 {[%emt 0:00:47]} 35. Nc1 {[%emt 0:01:16]} Rc8 {[%emt 0:00:20]} 36. Rd1 {[%emt 0:00:25]} Qc2+ {[%emt 0:11:21]} 37. Ke1 {[%emt 0:00:09]} Qxa4 {[%emt 0:01:44]} 38. Nd3 {[%emt 0:00:08]} Nd7 {[%emt 0:00:19]} 39. Qf3 {[%emt 0:02:33]} Qb5 {[%emt 0:01:59]} 40. Rd2 {[%emt 0:01:02]} b3 {[%emt 0:01:11]} 41. e4 {[%emt 0:33:37]} Rc2 {[%emt 0:33:05]} 42. Rxc2 {[%emt 0:00:20]} bxc2 {[%emt 0:00:05]} 43. Kd2 {[%emt 0:00:25]} Nb6 {[%emt 0:11:29]} 44. Kc1 {[%emt 0:02:51]} a4 {[%emt 0:01:56]} 45. Nc5 {[%emt 0:04:27]} Nc4 {[%emt 0:01:33]} 46. Qc3 {[%emt 0:01:34]} a3 {[%emt 0:00:25]} 47. b3 {[%emt 0:00:12]} Ne3 {[%emt 0:01:02]} 48. Kd2 {[%emt 0:06:19]} Qf1 {[%emt 0:02:15]} 49. Nd3 {[%emt 0:00:30]} a2 {[%emt 0:01:03]} 50. Ne1 {[%emt 0:00:51]} Qf2+ {[%emt 0:02:12]} 51. Kd3 {[%emt 0:00:09]} Nd1 {[%emt 0:00:00]} 52. Qc8+ {[%emt 0:00:00]} Kh7 {[%emt 0:00:00]} 1/2-1/2

[Event "Panevezys Elite Open 2020"]
[Site "Panevezys"]
[Date "2020.07.01"]
[Round "7.7"]
[White "Chukavin, Kirill"]
[Black "Juksta, Karolis"]
[Result "0-1"]
[ECO "C00"]
[WhiteElo "2348"]
[BlackElo "2366"]
[Annotator "ChessBase"]
[PlyCount "82"]
[EventDate "2020.06.26"]
[EventType "swiss"]
[EventCountry "LTU"]
[SourceTitle "playchess.com"]
[Source "ChessBase"]
[SourceQuality "1"]
[TimeControl "40/5400+30:1800+30"]

1. e4 {[%emt 0:00:20]} e6 {[%emt 0:00:00]} 2. d4 {[%emt 0:00:25]} d5 {[%emt 0:00:00]} 3. Bd3 {[%emt 0:00:05]} dxe4 {[%emt 0:03:03]} 4. Bxe4 {[%emt 0:00:08]} Nf6 {[%emt 0:00:06]} 5. Bf3 {[%emt 0:00:05]} c5 {[%emt 0:00:06]} 6. Ne2 {[%emt 0:00:09]} Nc6 {[%emt 0:00:06]} 7. Be3 {[%emt 0:00:09]} e5 {[%emt 0:01:06]} 8. Bxc6+ {[%emt 0:00:35]} bxc6 {[%emt 0:00:06]} 9. dxe5 {[%emt 0:00:05]} Qxd1+ {[%emt 0:00:04]} 10. Kxd1 {[%emt 0:00:05]} Ng4 {[%emt 0:00:08]} 11. Nd2 {[%emt 0:07:47]} Ba6 {[%emt 0:16:48]} 12. Nc3 {[%emt 0:19:01]} O-O-O {[%emt 0:09:47]} 13. Ke1 {[%emt 0:04:11]} Nxe5 {[%emt 0:01:49]} 14. f3 {[%emt 0:04:02]} f5 {[%emt 0:07:14]} 15. Kf2 {[%emt 0:06:41]} Bd6 {[%emt 0:02:27]} 16. Rad1 {[%emt 0:03:48]} Rhe8 {[%emt 0:08:16]} 17. Nb3 {[%emt 0:14:16]} Nc4 {[%emt 0:18:20]} 18. Bxc5 {[%emt 0:08:18]} Be5 {[%emt 0:01:25]} 19. Rxd8+ {[%emt 0:09:10]} Rxd8 {[%emt 0:00:16]} 20. Rd1 {[%emt 0:02:17]} Nxb2 {[%emt 0:04:36]} 21. Rxd8+ {[%emt 0:00:10]} Kxd8 {[%emt 0:00:05]} 22. Bd4 {[%emt 0:00:53]} Nc4 {[%emt 0:02:47]} 23. Bxe5 {[%emt 0:02:01]} Nxe5 {[%emt 0:00:05]} 24. Nc5 {[%emt 0:03:45]} Bc4 {[%emt 0:00:52]} 25. Ke3 {[%emt 0:00:38]} Ng6 {[%emt 0:03:20]} 26. Kd4 {[%emt 0:00:33]} Bf7 {[%emt 0:00:37]} 27. Nd3 {[%emt 0:01:38]} Ke7 {[%emt 0:04:11]} 28. Kc5 {[%emt 0:02:14]} Kd7 {[%emt 0:04:21]} 29. f4 {[%emt 0:03:25]} Kc7 {[%emt 0:00:31]} 30. Ne5 {[%emt 0:02:28]} Nxe5 {[%emt 0:03:47]} 31. fxe5 {[%emt 0:00:02]} f4 {[%emt 0:06:06]} 32. a3 {[%emt 0:01:38]} Kd7 {[%emt 0:01:25]} 33. g3 {[%emt 0:04:40]} fxg3 {[%emt 0:01:21]} 34. hxg3 {[%emt 0:00:02]} Bg6 {[%emt 0:00:01]} 35. Ne2 {[%emt 0:01:06]} Bxc2 {[%emt 0:00:25]} 36. e6+ {[%emt 0:00:31]} Ke7 {[%emt 0:00:21]} 37. Kxc6 {[%emt 0:00:34]} Be4+ {[%emt 0:00:12]} 38. Kc7 {[%emt 0:00:25]} Kxe6 {[%emt 0:00:06]} 39. a4 {[%emt 0:00:36]} Kf5 {[%emt 0:01:15]} 40. a5 {[%emt 0:00:29]} Kg4 {[%emt 0:00:45]} 41. Nf4 {[%emt 0:03:04]} h5 {[%emt 0:04:36]} 0-1

[Event "Panevezys Elite Open 2020"]
[Site "Panevezys"]
[Date "2020.07.01"]
[Round "7.9"]
[White "Butvilas, Aistis"]
[Black "Valantiejus, Vaidotas"]
[Result "0-1"]
[ECO "E20"]
[WhiteElo "2103"]
[BlackElo "2082"]
[Annotator "ChessBase"]
[PlyCount "118"]
[EventDate "2020.06.26"]
[EventType "swiss"]
[EventCountry "LTU"]
[SourceTitle "playchess.com"]
[Source "ChessBase"]
[SourceQuality "1"]
[TimeControl "40/5400+30:1800+30"]

1. d4 {[%emt 0:00:00]} Nf6 {[%emt 0:00:00]} 2. c4 {[%emt 0:00:00]} e6 {[%emt 0:00:00]} 3. Nc3 {[%emt 0:00:00]} Bb4 {[%emt 0:01:50]} 4. f3 {[%emt 0:00:11]} c5 {[%emt 0:00:22]} 5. d5 {[%emt 0:00:14]} d6 {[%emt 0:00:19]} 6. e4 {[%emt 0:00:41]} b5 {[%emt 0:00:28]} 7. Nge2 {[%emt 0:03:49]} bxc4 {[%emt 0:01:22]} 8. Nf4 {[%emt 0:04:15]} Bxc3+ {[%emt 0:00:43]} 9. bxc3 {[%emt 0:00:10]} e5 {[%emt 0:00:22]} 10. Ne2 {[%emt 0:01:37]} Nbd7 {[%emt 0:00:53]} 11. g4 {[%emt 0:02:35]} Nb6 {[%emt 0:15:19]} 12. Ng3 {[%emt 0:04:00]} h5 {[%emt 0:08:03]} 13. g5 {[%emt 0:01:00]} Nh7 {[%emt 0:06:34]} 14. h4 {[%emt 0:01:31]} Nf8 {[%emt 0:02:05]} 15. Be3 {[%emt 0:10:26]} g6 {[%emt 0:02:09]} 16. Rh2 {[%emt 0:13:19]} Nfd7 {[%emt 0:01:55]} 17. Be2 {[%emt 0:02:21]} Qe7 {[%emt 0:03:22]} 18. Qc2 {[%emt 0:03:08]} Rb8 {[%emt 0:11:23]} 19. Rb1 {[%emt 0:06:48]} Ba6 {[%emt 0:03:49]} 20. a4 {[%emt 0:02:54]} O-O {[%emt 0:05:45]} 21. Kd2 {[%emt 0:02:08]} Na8 {[%emt 0:01:36]} 22. Rhh1 {[%emt 0:01:33]} Rb3 {[%emt 0:06:55]} 23. Rxb3 {[%emt 0:04:17]} cxb3 {[%emt 0:00:05]} 24. Qxb3 {[%emt 0:00:14]} Bxe2 {[%emt 0:00:10]} 25. Nxe2 {[%emt 0:01:41]} Rb8 {[%emt 0:00:49]} 26. Qa2 {[%emt 0:03:50]} Qd8 {[%emt 0:01:24]} 27. a5 {[%emt 0:10:59]} Rb5 {[%emt 0:00:28]} 28. Ra1 {[%emt 0:00:47]} Qb8 {[%emt 0:00:28]} 29. Kc2 {[%emt 0:01:25]} Nc7 {[%emt 0:02:01]} 30. Nc1 {[%emt 0:01:42]} Na6 {[%emt 0:01:19]} 31. Nd3 {[%emt 0:00:39]} Qc7 {[%emt 0:04:34]} 32. Qa4 {[%emt 0:07:26]} Rb7 {[%emt 0:01:30]} 33. Nb2 {[%emt 0:02:06]} c4 {[%emt 0:08:24]} 34. Ra2 {[%emt 0:06:16]} Ndc5 {[%emt 0:04:54]} 35. Qxc4 {[%emt 0:01:06]} Qd7 {[%emt 0:01:00]} 36. Qf1 {[%emt 0:01:09]} Rc7 {[%emt 0:01:04]} 37. Bxc5 {[%emt 0:00:36]} Nxc5 {[%emt 0:00:12]} 38. Ra3 {[%emt 0:00:32]} Qc8 {[%emt 0:01:04]} 39. c4 {[%emt 0:00:41]} Rb7 {[%emt 0:00:42]} 40. Qe2 {[%emt 0:01:18]} Qh3 {[%emt 0:01:45]} 41. Nd3 {[%emt 0:12:36]} Nxd3 {[%emt 0:04:05]} 42. Rxd3 {[%emt 0:01:13]} Qxh4 {[%emt 0:02:48]} 43. c5 {[%emt 0:03:41]} dxc5 {[%emt 0:00:15]} 44. d6 {[%emt 0:00:45]} Qxg5 {[%emt 0:01:59]} 45. d7 {[%emt 0:00:57]} Qd8 {[%emt 0:00:15]} 46. Qd2 {[%emt 0:00:32]} Rb4 {[%emt 0:00:51]} 47. Qe2 {[%emt 0:03:36]} h4 {[%emt 0:08:02]} 48. Rd6 {[%emt 0:04:05]} h3 {[%emt 0:14:17]} 49. Qa6 {[%emt 0:01:32]} Kg7 {[%emt 0:03:33]} 50. Qc8 {[%emt 0:05:44]} Qxa5 {[%emt 0:00:15]} 51. d8=Q {[%emt 0:00:51]} Qa2+ {[%emt 0:00:36]} 52. Kc3 {[%emt 0:00:28]} Rb3+ {[%emt 0:01:16]} 53. Kc4 {[%emt 0:00:08]} Rb4+ {[%emt 0:00:34]} 54. Kd3 {[%emt 0:00:28]} Rb3+ {[%emt 0:00:17]} 55. Kc4 {[%emt 0:00:08]} Rb4+ {[%emt 0:00:47]} 56. Kd3 {[%emt 0:00:01]} Rb3+ {[%emt 0:00:30]} 57. Kc4 {[%emt 0:00:11]} Rb6+ {[%emt 0:00:25]} 58. Kxc5 {[%emt 0:01:08]} Qc2+ {[%emt 0:00:09]} 59. Kd5 {[%emt 0:00:04]} Rb5+ {[%emt 0:00:10]} 0-1